bitfinex-derivatives/quotes_BTCF0:USTF0_20250325
["timestamp","ask_amount","ask_price","bid_price","bid_amount"]
[1742923999271,0.36097037,88053.0,88044.0,0.51374978]
[1742923999272,0.00017037,88053.0,88052.0,0.1135442]
[1742923999477,0.00105038,88053.0,88052.0,0.4853042]
[1742923999673,0.00077038,88053.0,88052.0,0.37176]
[1742923999873,0.00017037,88053.0,88052.0,0.37176]
[1742924001766,0.00017037,88053.0,88052.0,1.19652]
[1742924002875,0.00017037,88053.0,88052.0,1.3100642]
[1742924004476,0.00017037,88053.0,88052.0,1.19644]
[1742924004978,0.00017037,88053.0,88052.0,1.3099842]
[1742924006388,0.00017037,88053.0,88052.0,1.19644]
[1742924006591,0.00017037,88053.0,88052.0,1.3099842]
[1742924008189,0.00017037,88053.0,88052.0,1.26024]
[1742924008487,0.00017037,88053.0,88052.0,1.3737842]
[1742924008987,0.00017037,88053.0,88052.0,1.4384842]
[1742924009886,0.00017037,88053.0,88052.0,1.5031842]
[1742924010979,0.00017037,88053.0,88052.0,1.38964]
[1742924011287,0.00017037,88053.0,88052.0,1.26126]
[1742924012289,0.00017037,88053.0,88052.0,1.32666]
[1742924012881,0.00017037,88053.0,88052.0,1.4402042]
[1742924013289,0.00017037,88053.0,88052.0,1.32666]
[1742924013683,0.00017037,88053.0,88052.0,1.21574]
[1742924013884,0.00017037,88053.0,88052.0,1.32682]
[1742924016494,0.00017037,88053.0,88052.0,1.52896426]
[1742924020387,0.00017037,88053.0,88052.0,1.32682]
[1742924021195,0.00017037,88053.0,88052.0,1.26142]
[1742924021388,0.00017037,88053.0,88052.0,1.19672]
[1742924021587,0.00017037,88053.0,88052.0,1.08564]
[1742924025395,0.00017037,88053.0,88052.0,1.20824]
[1742924025592,0.00017037,88053.0,88052.0,1.08564]
[1742924026400,0.00017037,88053.0,88052.0,1.44644]
[1742924026800,0.00017037,88053.0,88052.0,1.08564]
[1742924027393,0.24029328,88053.0,88052.0,1.08564]
[1742924027597,0.24029328,88053.0,88052.0,0.82564]
[1742924031798,0.35117328,88053.0,88052.0,0.00088]
[1742924032809,0.1135442,88052.0,88051.0,0.20303623]
[1742924033104,0.11442421,88052.0,88051.0,0.20391623]
[1742924033304,0.24062421,88052.0,88051.0,0.20391623]
[1742924036699,0.24062421,88052.0,88051.0,0.00088]
[1742924036906,0.113552,88046.0,88045.0,0.20303623]
[1742924037203,0.475272,88046.0,88045.0,0.20391623]
[1742924037406,0.606472,88046.0,88045.0,0.20391623]
[1742924038508,0.606472,88046.0,88045.0,0.20591623]
[1742924038902,0.606472,88046.0,88045.0,0.20791623]
[1742924040705,0.606472,88046.0,88045.0,0.00488]
[1742924040905,0.606472,88046.0,88045.0,0.004]
[1742924041412,1.02269498,88046.0,88044.0,7e-08]
[1742924041607,0.1135636,88037.0,88036.0,0.14978318]
[1742924041807,0.5860836,88037.0,88036.0,0.15066318]
[1742924042406,0.7166836,88037.0,88036.0,0.15066318]
[1742924042605,0.7146836,88037.0,88036.0,0.15066318]
[1742924042811,0.7126836,88037.0,88036.0,0.15066318]
[1742924043411,0.73090822,88037.0,88036.0,0.15066318]
[1742924043596,0.73090822,88037.0,88036.0,0.15366318]
[1742924044217,0.73090822,88037.0,88036.0,0.12666878]
[1742924044403,1.13850822,88037.0,88036.0,8e-08]
[1742924044814,0.11357,88032.0,88031.0,0.00045438]
[1742924045014,0.47517,88032.0,88031.0,0.00045438]
[1742924045309,0.60567,88032.0,88031.0,0.00045438]
[1742924046411,0.60567,88032.0,88031.0,8e-08]
[1742924047516,0.60567,88032.0,88031.0,0.00200008]
[1742924047813,0.1135739,88029.0,88028.0,5e-08]
[1742924048016,0.1143339,88029.0,88028.0,5e-08]
[1742924048211,0.2353339,88029.0,88028.0,5e-08]
[1742924051213,0.2353339,88029.0,88019.0,8e-05]
[1742924051214,0.1135855,88020.0,88019.0,7e-08]
[1742924051413,0.1135907,88016.0,88014.0,0.0653]
[1742924051720,0.1143507,88016.0,88015.0,0.04784079]
[1742924051902,0.2408507,88016.0,88015.0,0.11144079]
[1742924053407,0.2408507,88016.0,88015.0,0.11084079]
[1742924053607,0.25968374,88016.0,88015.0,0.11084079]
[1742924054417,0.26068374,88016.0,88015.0,0.11084079]
[1742924055009,0.26068374,88016.0,88015.0,9e-08]
[1742924055411,0.26068374,88016.0,88009.0,0.04681036]
[1742924055412,0.1135984,88010.0,88009.0,0.04681036]
[1742924055611,0.2253584,88010.0,88009.0,0.10991036]
[1742924055815,0.2253584,88010.0,88009.0,0.16931036]
[1742924056517,0.3552584,88010.0,88009.0,0.16931036]
[1742924058314,0.3562584,88010.0,88009.0,0.16931036]
[1742924059315,0.2454184,88010.0,88009.0,0.16931036]
[1742924059523,0.0568028,88005.0,87967.0,0.36080001]
[1742924059708,0.4176043,88002.0,88000.0,0.19871991]
[1742924059914,0.1136113,88000.0,87999.0,5e-08]
[1742924060113,0.1150913,88000.0,87999.0,5e-08]
[1742924060306,0.1755913,88000.0,87999.0,5e-08]
[1742924061211,0.1755913,88000.0,87999.0,0.0144955]
[1742924061411,0.1755913,88000.0,87999.0,0.06049933]
[1742924061618,0.1765913,88000.0,87999.0,0.06049933]
[1742924062521,0.1765913,88000.0,87999.0,0.06109933]
[1742924062725,0.1775913,88000.0,87999.0,0.06109933]
[1742924063423,0.1775913,88000.0,87999.0,0.06111301]
[1742924063622,0.1170913,88000.0,87999.0,0.07908308]
[1742924065226,0.1170913,88000.0,87999.0,0.06457395]
[1742924065817,0.1170913,88000.0,87999.0,0.06473395]
[1742924066225,0.1170913,88000.0,87999.0,0.06413395]
[1742924067513,0.1170913,88000.0,87999.0,0.06473395]
[1742924067920,0.1170913,88000.0,87999.0,0.19213395]
[1742924068830,0.1170913,88000.0,87999.0,0.14613012]
[1742924069030,0.1170913,88000.0,87999.0,0.14553012]
[1742924069329,0.1170913,88000.0,87999.0,0.15999776]
[1742924069524,0.1170913,88000.0,87999.0,0.16067776]
[1742924070030,0.1170913,88000.0,87999.0,0.16067915]
[1742924070231,0.00348,88000.0,87999.0,0.14621012]
[1742924070426,8e-05,88016.0,88008.0,0.1136001]
[1742924070726,8e-05,88016.0,88014.0,0.1135932]
[1742924070727,0.00387991,88015.0,88014.0,0.1135932]
[1742924070930,0.58244,88035.0,88015.0,0.0567956]
[1742924071127,0.11415097,88024.0,88020.0,0.3608]
[1742924071320,0.11415097,88024.0,88021.0,0.1248]
[1742924071321,0.1135829,88022.0,88021.0,0.1248]
[1742924071522,0.00057037,88024.0,88021.0,0.2854]
[1742924071717,0.00161038,88024.0,88021.0,0.2854]
[1742924072017,0.00057037,88024.0,88021.0,0.2854]
[1742924072332,0.00161038,88024.0,88021.0,0.2854]
[1742924072529,0.00057037,88024.0,88021.0,0.2854]
[1742924072727,0.00057037,88024.0,88021.0,0.2864]
[1742924074129,0.00057037,88024.0,88022.0,0.0605]
[1742924074327,0.00165037,88024.0,88022.0,0.30114]
[1742924074533,0.00165037,88024.0,88023.0,0.126]
[1742924074730,0.00165037,88024.0,88023.0,0.3266]
[1742924075424,0.00165037,88024.0,88023.0,0.45728794]
[1742924075621,0.00057037,88024.0,88023.0,0.58260683]
[1742924076020,0.00057037,88024.0,88023.0,0.58460621]
[1742924077130,8e-05,88030.0,88029.0,0.1135739]
[1742924077355,0.00112001,88030.0,88029.0,0.7149739]
[1742924077528,0.13585828,88031.0,88030.0,0.1135726]
[1742924077832,0.13585828,88031.0,88030.0,0.3546926]
[1742924077833,0.13697829,88031.0,88030.0,0.3546926]
[1742924078034,0.13697829,88031.0,88030.0,0.4824926]
[1742924078621,0.13697829,88031.0,88030.0,0.49097991]
[1742924078826,0.13697829,88031.0,88030.0,0.49197991]
[1742924080227,0.13697829,88031.0,88030.0,0.50644894]
[1742924080423,0.00112001,88031.0,88030.0,0.50644894]
[1742924080737,0.00017037,88039.0,88035.0,0.1135659]
[1742924081042,0.00121038,88039.0,88037.0,0.1135634]
[1742924081227,0.00121038,88039.0,88038.0,0.1233]
[1742924081430,0.00121038,88039.0,88038.0,0.2839]
[1742924081737,0.00121038,88039.0,88038.0,0.7582623]
[1742924082038,0.20893228,88061.0,88060.0,0.1135339]
[1742924082240,0.00072,88061.0,88060.0,1.6716939]
[1742924082538,0.27190868,88066.0,88065.0,0.1135275]
[1742924082741,0.27262868,88066.0,88065.0,0.2606]
[1742924082939,0.27262868,88066.0,88065.0,0.3741275]
[1742924083340,0.27262868,88066.0,88065.0,0.4980275]
[1742924083840,0.27262868,88066.0,88065.0,0.3845]
[1742924084434,0.00072,88066.0,88065.0,0.3845]
[1742924084633,0.0624,88066.0,88065.0,0.3845]
[1742924085232,0.0654,88066.0,88065.0,0.3845]
[1742924085639,0.1295,88066.0,88065.0,0.3845]
[1742924086041,0.1295,88066.0,88065.0,0.40126057]
[1742924086440,0.1295,88066.0,88065.0,0.51478807]
[1742924086639,0.0694,88066.0,88065.0,0.51478807]
[1742924086839,0.0694,88066.0,88065.0,0.40126057]
[1742924087242,0.1338,88066.0,88065.0,0.40126057]
[1742924087447,0.1338,88066.0,88065.0,0.51478807]
[1742924087643,0.1338,88066.0,88065.0,0.40126057]
[1742924088042,0.1338,88066.0,88065.0,0.51354057]
[1742924093250,0.1318,88066.0,88065.0,0.51354057]
[1742924093837,0.1298,88066.0,88065.0,0.51354057]
[1742924098156,0.1298,88066.0,88065.0,0.38912057]
[1742924099245,0.1298,88066.0,88065.0,0.27736057]
[1742924099446,0.1298,88066.0,88065.0,0.38904057]
[1742924101253,0.1298,88066.0,88065.0,0.27736057]
[1742924103352,0.1298,88066.0,88065.0,0.34246057]
[1742924105357,0.0654,88066.0,88065.0,0.34246057]
[1742924107860,0.003,88066.0,88065.0,0.34246057]
[1742924109870,0.001,88066.0,88065.0,0.45414057]
[1742924110262,0.0609,88069.0,88065.0,0.34246057]
[1742924110463,0.0609,88069.0,88068.0,0.3608]
[1742924110660,0.06162,88069.0,88068.0,0.6214]
[1742924111366,0.06162,88069.0,88068.0,0.6862]
[1742924113257,0.06162,88069.0,88068.0,0.6872]
[1742924114261,0.00072,88069.0,88068.0,0.6872]
[1742924114461,0.20386956,88073.0,88068.0,0.6872]
[1742924114462,0.20386956,88073.0,88070.0,0.1135199]
[1742924114658,0.20386956,88073.0,88071.0,0.1213]
[1742924114855,0.20386956,88073.0,88071.0,0.4019]
[1742924115356,0.0643,88072.0,88071.0,0.51334]
[1742924115556,0.12482,88072.0,88071.0,0.51334]
[1742924116161,0.1241,88072.0,88071.0,0.3428]
[1742924116356,0.12482,88072.0,88071.0,0.2806]
[1742924117460,0.12482,88072.0,88071.0,0.29535643]
[1742924119072,0.12482,88072.0,88071.0,0.01534464]
[1742924119669,0.18001716,88072.0,88071.0,0.01534464]
[1742924120763,0.18001716,88072.0,88071.0,0.01533817]
[1742924121768,0.18001716,88072.0,88071.0,0.02993459]
[1742924122667,0.18001716,88072.0,88071.0,0.0006]
[1742924127464,0.29353556,88072.0,88071.0,0.0006]
[1742924127773,0.1135262,88066.0,88065.0,0.01676057]
[1742924128073,0.1142462,88066.0,88065.0,0.0006]
[1742924128271,0.2945462,88066.0,88065.0,0.0006]
[1742924128568,0.18102,88066.0,88065.0,0.0006]
[1742924129464,0.18102,88066.0,88065.0,0.0016]
[1742924132669,0.18102,88066.0,88065.0,0.01631005]
[1742924133773,0.23621346,88066.0,88065.0,0.01631005]
[1742924134475,0.23621346,88066.0,88065.0,0.0163052]
[1742924136477,0.23621346,88066.0,88065.0,0.01638832]
[1742924139084,0.17571346,88066.0,88065.0,0.01638832]
[1742924140077,0.17571346,88066.0,88065.0,0.01538832]
[1742924140277,0.17671346,88066.0,88065.0,0.01538832]
[1742924142079,0.17571346,88066.0,88065.0,0.01538832]
[1742924142283,0.17671346,88066.0,88065.0,0.01538832]
[1742924142474,1.20615346,88066.0,88040.0,0.53649698]
[1742924142678,0.3608,88055.0,88047.0,0.0010943]
[1742924142883,0.29938,88054.0,88047.0,0.0010943]
[1742924143078,0.1135494,88048.0,88047.0,0.0010943]
[1742924143273,0.11442941,88048.0,88047.0,0.0010943]
[1742924143475,0.00088001,88048.0,88047.0,0.0010943]
[1742924143678,0.24032941,88048.0,88047.0,0.0010943]
[1742924143980,0.12678001,88048.0,88047.0,0.0020943]
[1742924145583,0.24032941,88048.0,88047.0,0.0020943]
[1742924145787,0.24032941,88048.0,88047.0,0.0175878]
[1742924146388,0.12678001,88048.0,88047.0,0.0175878]
[1742924147384,0.12678001,88048.0,88047.0,0.0792878]
[1742924150282,0.24032941,88048.0,88047.0,0.0792878]
[1742924153291,0.24032941,88048.0,88047.0,0.1449878]
[1742924153488,0.12678001,88048.0,88047.0,0.1449878]
[1742924153688,0.24032941,88048.0,88047.0,0.2108878]
[1742924155094,0.24032941,88048.0,88047.0,0.2098878]
[1742924155293,0.12678001,88048.0,88047.0,0.2098878]
[1742924155793,0.12778001,88048.0,88047.0,0.2098878]
[1742924156295,0.24132941,88048.0,88047.0,0.2098878]
[1742924156690,0.24232941,88048.0,88047.0,0.2098878]
[1742924157180,0.24132941,88048.0,88047.0,0.2098878]
[1742924157389,0.24232941,88048.0,88047.0,0.2098878]
[1742924159691,0.12878001,88048.0,88047.0,0.2098878]
[1742924159899,0.24232941,88048.0,88047.0,0.2098878]
[1742924160393,0.24432941,88048.0,88047.0,0.2098878]
[1742924160690,0.13078001,88048.0,88047.0,0.2098878]
[1742924160893,0.24432941,88048.0,88047.0,0.2098878]
[1742924161595,0.24432941,88048.0,88047.0,0.0010943]
[1742924161797,0.60612941,88048.0,88047.0,0.0004543]
[1742924163586,0.42848001,88048.0,88047.0,0.0004543]
[1742924163792,0.36668001,88048.0,88047.0,0.1875543]
[1742924163990,0.36668001,88048.0,88047.0,0.1881543]
[1742924164196,0.00588001,88048.0,88047.0,0.1881543]
[1742924165197,0.07158001,88048.0,88047.0,0.1881543]
[1742924165399,0.25002941,88048.0,88047.0,0.1881543]
[1742924165789,0.38610156,88048.0,88047.0,0.1881543]
[1742924167499,0.38610156,88048.0,88047.0,0.0625543]
[1742924167695,0.44970156,88048.0,88047.0,0.0004543]
[1742924168092,0.44970156,88048.0,88047.0,0.0650343]
[1742924170102,0.31362941,88048.0,88047.0,0.0650343]
[1742924172090,0.25002941,88048.0,88047.0,0.0650343]
[1742924172289,0.25002941,88048.0,88047.0,0.1299343]
[1742924173498,0.13648001,88048.0,88047.0,0.1299343]
[1742924173695,0.00588001,88048.0,88047.0,0.303485]
[1742924173892,0.16421017,88061.0,88054.0,0.0567708]
[1742924174198,8e-05,88062.0,88061.0,0.1135326]
[1742924174501,0.0642,88070.0,88062.0,0.1135312]
[1742924174690,0.20485319,88068.0,88062.0,0.3535309]
[1742924174910,0.20417319,88068.0,88062.0,0.24]
[1742924175692,0.20417319,88068.0,88063.0,0.11353]
[1742924175889,0.20417319,88068.0,88063.0,0.38353]
[1742924176194,0.20417319,88068.0,88063.0,0.27]
[1742924176502,0.1218,88067.0,88063.0,0.27]
[1742924177402,0.1218,88067.0,88065.0,0.27017338]
[1742924177604,0.1218,88067.0,88066.0,0.0612]
[1742924177904,0.1268,88067.0,88066.0,0.0612]
[1742924178104,0.1268,88067.0,88066.0,0.07652385]
[1742924178804,0.1318,88067.0,88066.0,0.07652385]
[1742924179603,0.1318,88067.0,88066.0,0.07716385]
[1742924180594,0.13244,88067.0,88066.0,0.07716385]
[1742924180896,0.1318,88067.0,88066.0,0.07716385]
[1742924181096,0.13244,88067.0,88066.0,0.07716385]
[1742924181295,0.1318,88067.0,88066.0,0.07716385]
[1742924183304,0.13244,88067.0,88066.0,0.07716385]
[1742924183707,0.1318,88067.0,88066.0,0.07716385]
[1742924184596,0.13248,88067.0,88066.0,0.07716385]
[1742924184996,0.1318,88067.0,88066.0,0.01596385]
[1742924185196,0.13244,88067.0,88066.0,0.01596385]
[1742924185500,0.01064,88067.0,88066.0,0.44676385]
[1742924185702,0.11124,88078.0,88066.0,0.44676385]
[1742924185703,0.11128,88095.0,88068.0,0.0567616]
[1742924185898,0.0638,88094.0,88079.0,0.3608]
[1742924186105,0.0638,88094.0,88087.0,0.3608]
[1742924186106,0.113493,88092.0,88087.0,0.3608]
[1742924186305,0.00104,88088.0,88087.0,0.3614]
[1742924186809,0.12474,88088.0,88087.0,0.3614]
[1742924187306,0.2382378,88088.0,88087.0,0.3614]
[1742924187807,0.2989378,88088.0,88087.0,0.3614]
[1742924188304,0.3039378,88088.0,88087.0,0.3614]
[1742924188895,0.3099378,88088.0,88087.0,0.3614]
[1742924189408,0.3099378,88088.0,88087.0,0.01978133]
[1742924189600,0.1135081,88080.0,88079.0,0.36097037]
[1742924189803,0.1141481,88080.0,88079.0,0.38091177]
[1742924190198,0.2416481,88080.0,88079.0,0.38091177]
[1742924190703,0.2416481,88080.0,88079.0,0.36157037]
[1742924190903,0.3590481,88080.0,88079.0,0.36157037]
[1742924191113,0.3590481,88080.0,88079.0,0.00077037]
[1742924191406,0.3590481,88080.0,88064.0,0.0612]
[1742924191407,0.1135184,88072.0,88062.0,0.82452]
[1742924191597,0.4749984,88072.0,88071.0,0.27085338]
[1742924191995,0.4749984,88072.0,88071.0,0.00068]
[1742924192206,0.1135287,88064.0,88062.0,0.82452]
[1742924192504,0.5864887,88064.0,88063.0,0.00113422]
[1742924192806,0.5857687,88064.0,88063.0,0.00045422]
[1742924193697,0.60486023,88064.0,88063.0,0.00045422]
[1742924193906,0.60686023,88064.0,88063.0,0.00045422]
[1742924194706,0.67126023,88064.0,88063.0,0.00045422]
[1742924195009,0.67326023,88064.0,88063.0,0.00045422]
[1742924195711,0.6541687,88064.0,88063.0,0.00045422]
[1742924196303,0.004,88064.0,88063.0,0.00045422]
[1742924196501,0.004,88064.0,88063.0,0.13385422]
[1742924196811,0.1175287,88064.0,88063.0,0.13385422]
[1742924197431,0.2457287,88064.0,88063.0,0.13385422]
[1742924197799,0.2464487,88064.0,88063.0,0.13453422]
[1742924199414,0.2464487,88064.0,88063.0,0.06713422]
[1742924199716,0.2464487,88064.0,88063.0,0.00113422]
[1742924199717,0.6072487,88064.0,88063.0,0.00113422]
[1742924200212,0.6271976,88064.0,88063.0,0.00045422]
[1742924200417,0.1135391,88056.0,88055.0,0.00017037]
[1742924200611,0.2257391,88056.0,88055.0,0.00085037]
[1742924201012,0.2257391,88056.0,88055.0,0.00017037]
[1742924201313,0.3549991,88056.0,88055.0,0.00017037]
[1742924201503,0.3549991,88056.0,88055.0,0.00077037]
[1742924201709,0.3559991,88056.0,88055.0,0.00017037]
[1742924202105,0.7167991,88056.0,88055.0,0.00017037]
[1742924202310,0.1135494,88048.0,88047.0,0.0004543]
[1742924202519,0.1135558,88043.0,88042.0,0.19771168]
[1742924202720,0.1143558,88043.0,88042.0,0.16735958]
[1742924203020,0.113561,88039.0,88038.0,7e-08]
[1742924203219,0.1135674,88034.0,88033.0,0.13072288]
[1742924203519,0.0567884,88027.0,88023.0,0.40521497]
[1742924203819,0.1115907,88016.0,88013.0,0.47597962]
[1742924204016,0.1115907,88016.0,87994.0,0.0666]
[1742924204017,0.0567991,88011.0,87994.0,0.0666]
[1742924204221,0.1136061,88004.0,87989.0,0.00170483]
[1742924204408,0.2266461,88004.0,88003.0,0.61247094]
[1742924204613,0.2246461,88004.0,88003.0,0.61247094]
[1742924205022,0.23298069,88004.0,88003.0,0.61247094]
[1742924205217,0.23198069,88004.0,88003.0,0.61247094]
[1742924205814,0.2236461,88004.0,88003.0,0.61247094]
[1742924206016,0.2236461,88004.0,88003.0,0.1212588]
[1742924206017,1.1420461,88004.0,88003.0,0.1212588]
[1742924206226,1.1460461,88004.0,88003.0,0.1212588]
[1742924206816,1.1490461,88004.0,88003.0,0.1212588]
[1742924207336,1.16832812,88004.0,88003.0,0.1212588]
[1742924207620,1.16832812,88004.0,88003.0,0.0006]
[1742924207821,1.01832812,88004.0,88003.0,0.0006]
[1742924208025,0.1136113,88000.0,87995.0,0.00017037]
[1742924208418,0.11501131,88000.0,87995.0,0.00017037]
[1742924208619,0.1136113,88000.0,87995.0,0.00017037]
[1742924209227,0.5212113,88000.0,87995.0,0.00017037]
[1742924209417,0.5242113,88000.0,87995.0,0.00017037]
[1742924210017,0.5262113,88000.0,87999.0,5e-08]
[1742924211427,0.1136165,87996.0,87995.0,2e-08]
[1742924211632,0.8820165,87996.0,87995.0,2e-08]
[1742924212335,0.9444165,87996.0,87995.0,2e-08]
[1742924212936,0.9464165,87996.0,87995.0,2e-08]
[1742924213747,0.9477765,87996.0,87995.0,2e-08]
[1742924214144,0.9487765,87996.0,87995.0,2e-08]
[1742924214947,0.1136242,87990.0,87989.0,8e-05]
[1742924215149,0.2267442,87990.0,87989.0,0.00148]
[1742924215347,0.1149842,87990.0,87989.0,0.00148]
[1742924215543,0.2268242,87990.0,87989.0,0.00148]
[1742924215844,0.3542242,87990.0,87989.0,0.00148]
[1742924217537,0.3542242,87990.0,87989.0,0.0014]
[1742924218737,0.2897242,87990.0,87989.0,0.0014]
[1742924221139,0.3089141,87990.0,87989.0,0.0014]
[1742924222942,0.3099141,87990.0,87989.0,0.0014]
[1742924223641,0.3109141,87990.0,87989.0,0.0014]
[1742924224043,0.00336,87990.0,87989.0,0.0014]
[1742924224242,0.00336,87990.0,87989.0,0.08133452]
[1742924225143,0.10111509,87998.0,87989.0,0.0100013]
[1742924225449,0.16965957,88008.0,87997.0,0.3608]
[1742924225655,0.17141957,88008.0,87997.0,0.6108]
[1742924225858,0.17141957,88008.0,88007.0,0.3608]
[1742924226344,0.28502057,88008.0,88007.0,0.3608]
[1742924226944,0.17141957,88008.0,88007.0,0.3608]
[1742924227150,0.17141957,88008.0,88007.0,0.37986873]
[1742924227353,0.00216,88008.0,88007.0,0.37986873]
[1742924227657,0.116761,88008.0,88007.0,0.37986873]
[1742924227854,0.117761,88008.0,88007.0,0.37986873]
[1742924228154,0.00416,88008.0,88007.0,0.37986873]
[1742924229353,0.0024,88008.0,88007.0,0.37986873]
[1742924229658,0.00424,88008.0,88007.0,0.37986873]
[1742924230253,0.0024,88008.0,88007.0,0.37986873]
[1742924231464,0.00416,88008.0,88007.0,0.37986873]
[1742924231652,0.0024,88008.0,88007.0,0.37986873]
[1742924231862,0.00416,88008.0,88007.0,0.37986873]
[1742924233256,0.116001,88008.0,88007.0,0.3608]
[1742924233455,0.117761,88008.0,88007.0,0.3608]
[1742924234258,0.00416,88008.0,88007.0,0.3608]
[1742924234458,0.117761,88008.0,88007.0,0.3608]
[1742924235052,0.117761,88008.0,88007.0,0.38014361]
[1742924235253,0.05937863,88008.0,88007.0,0.38014361]
[1742924235659,0.17297963,88008.0,88007.0,0.38014361]
[1742924235963,0.05937863,88008.0,88007.0,0.38014361]
[1742924236464,0.05937863,88008.0,88007.0,0.44014361]
[1742924236757,0.20434356,88012.0,88007.0,0.44014361]
[1742924236959,0.20434356,88012.0,88007.0,0.44074361]
[1742924237262,0.20434356,88012.0,88008.0,0.1343]
[1742924237456,0.20434356,88012.0,88008.0,0.4049]
[1742924237457,0.20558357,88012.0,88008.0,0.4049]
[1742924238156,0.20658357,88012.0,88008.0,0.4049]
[1742924238758,0.0567985,88011.0,88008.0,0.1349]
[1742924238967,0.1135988,88010.0,88008.0,0.1349]
[1742924239162,0.1135997,88009.0,88008.0,0.1349]
[1742924239354,0.00124001,88009.0,88008.0,0.1349]
[1742924241062,0.00224001,88009.0,88008.0,0.1349]
[1742924241263,0.00324001,88009.0,88008.0,0.1349]
[1742924242164,0.11683971,88009.0,88008.0,0.1349]
[1742924242566,0.31973971,88009.0,88008.0,0.0703]
[1742924242762,0.31973971,88009.0,88008.0,0.1352]
[1742924244154,0.33908734,88009.0,88008.0,0.1352]
[1742924244873,0.33908734,88009.0,88008.0,0.0703]
[1742924248267,0.33908734,88009.0,88008.0,0.1337]
[1742924248268,0.00324001,88009.0,88008.0,0.1337]
[1742924248471,0.00324001,88009.0,88007.0,0.29000091]
[1742924248773,0.0686,88008.0,88007.0,0.29152091]
[1742924248964,0.07008,88008.0,88007.0,0.29152091]
[1742924249163,0.13838,88008.0,88007.0,0.29152091]
[1742924250267,0.251981,88008.0,88007.0,0.29152091]
[1742924250870,0.13838,88008.0,88007.0,0.29152091]
[1742924251265,0.07108,88008.0,88007.0,0.29152091]
[1742924251570,0.00248,88008.0,88007.0,0.29152091]
[1742924251776,0.00248,88008.0,88007.0,0.56152091]
[1742924252167,0.00348,88008.0,88007.0,0.69812091]
[1742924253261,0.00348,88008.0,88007.0,0.81172321]
[1742924256068,0.00017037,88012.0,88011.0,0.1135971]
[1742924256269,0.00017037,88012.0,88011.0,0.3742771]
[1742924256472,0.20381071,88021.0,88020.0,0.1135855]
[1742924256776,0.11132,88046.0,88034.0,0.056783]
[1742924256979,0.26902725,88043.0,88042.0,0.1135571]
[1742924257167,0.26902725,88043.0,88042.0,0.3935571]
[1742924257676,0.26998726,88043.0,88042.0,0.3935571]
[1742924257972,0.26902725,88043.0,88042.0,0.3935571]
[1742924258676,0.26902725,88043.0,88042.0,0.4593571]
[1742924258879,0.26902725,88043.0,88042.0,0.4833612]
[1742924259073,0.27102725,88043.0,88042.0,0.4833612]
[1742924259273,0.27202725,88043.0,88042.0,0.4833612]
[1742924259967,0.27202725,88043.0,88042.0,0.7447212]
[1742924260185,0.00048,88056.0,88055.0,0.1135403]
[1742924260370,0.1284,88070.0,88055.0,0.75216]
[1742924260574,0.1284,88070.0,88064.0,0.3608]
[1742924260776,0.1284,88070.0,88065.0,0.1341]
[1742924261385,0.1284,88070.0,88065.0,0.14282208]
[1742924261683,0.1284,88070.0,88059.0,0.00017037]
[1742924261876,0.3608,88066.0,88059.0,0.23157037]
[1742924262183,0.1284,88065.0,88060.0,0.0677]
[1742924262382,0.1284,88065.0,88060.0,0.3441]
[1742924262584,0.12936001,88065.0,88060.0,0.3447]
[1742924263878,0.13136001,88065.0,88060.0,0.3447]
[1742924264974,0.13636001,88065.0,88060.0,0.3447]
[1742924266482,0.20106001,88065.0,88060.0,0.3447]
[1742924268784,0.07296001,88065.0,88063.0,0.113529]
[1742924269084,0.072,88065.0,88064.0,0.2484287]
[1742924269280,0.072,88065.0,88064.0,0.4790687]
[1742924270083,0.074,88065.0,88064.0,0.4790687]
[1742924270479,0.074,88065.0,88064.0,0.36554]
[1742924272092,0.075,88065.0,88064.0,0.36554]
[1742924275477,0.075,88065.0,88064.0,0.30014]
[1742924275681,0.075,88065.0,88064.0,0.23064]
[1742924275885,0.07604001,88065.0,88064.0,0.23064]
[1742924277182,0.075,88065.0,88064.0,0.23064]
[1742924277687,0.07596001,88065.0,88064.0,0.23064]
[1742924277883,0.075,88065.0,88064.0,0.23064]
[1742924278387,0.07596001,88065.0,88064.0,0.00064]
[1742924282194,0.07596001,88065.0,88064.0,0.06064]
[1742924282396,0.075,88065.0,88064.0,0.1741687]
[1742924282599,0.076,88065.0,88064.0,0.3047687]
[1742924282893,0.076,88065.0,88064.0,0.19124]
[1742924283092,0.076,88065.0,88064.0,0.00064]
[1742924283598,0.1439,88065.0,88064.0,0.00064]
[1742924294006,0.1439,88065.0,88064.0,0.2441687]
[1742924294304,0.011,88065.0,88064.0,0.29021632]
[1742924294509,0.01,88065.0,88064.0,0.42561632]
[1742924294710,0.01096001,88065.0,88064.0,0.42561632]
[1742924296210,0.01096001,88065.0,88064.0,0.31208762]
[1742924296903,0.01096001,88065.0,88064.0,0.42561632]
[1742924298614,0.01096001,88065.0,88064.0,0.3795687]
[1742924303823,0.13516391,88069.0,88066.0,0.1135262]
[1742924304128,0.13592391,88069.0,88068.0,0.1135236]
[1742924304318,0.13592391,88069.0,88068.0,0.41018546]
[1742924304625,0.13592391,88069.0,88068.0,0.54568546]
[1742924305014,0.13992391,88069.0,88068.0,0.54568546]
[1742924305214,0.13992391,88069.0,88068.0,0.56993829]
[1742924306014,0.14092391,88069.0,88068.0,0.56993829]
[1742924306522,0.14092391,88069.0,88068.0,0.52387643]
[1742924308728,0.00576,88069.0,88068.0,0.52387643]
[1742924308927,0.005,88069.0,88068.0,0.52387643]
[1742924309223,0.005,88069.0,88068.0,0.34135283]
[1742924309414,0.00568,88069.0,88068.0,0.27485283]
[1742924310413,0.00568,88069.0,88068.0,0.0006]
[1742924312220,0.00568,88069.0,88068.0,0.02188082]
[1742924313227,0.00568,88069.0,88068.0,0.13540442]
[1742924313627,0.00568,88069.0,88068.0,0.02188082]
[1742924314420,0.00568,88069.0,88068.0,0.13540442]
[1742924314821,0.00568,88069.0,88068.0,0.02188082]
[1742924318319,0.07438,88069.0,88068.0,0.02188082]
[1742924318714,0.07438,88069.0,88068.0,0.27680442]
[1742924319330,0.07438,88069.0,88068.0,0.16328082]
[1742924320321,0.07438,88069.0,88068.0,0.40680442]
[1742924320627,0.20275914,88080.0,88073.0,0.1135171]
[1742924320820,0.20283914,88080.0,88077.0,0.113512]
[1742924321025,0.20343914,88080.0,88079.0,0.1135094]
[1742924321236,0.20411914,88080.0,88079.0,0.3841094]
[1742924321430,0.20343914,88080.0,88079.0,0.5199094]
[1742924322529,0.20343914,88080.0,88079.0,0.4064]
[1742924324517,0.00068,88080.0,88079.0,0.4064]